fUST/lending_fUST_20250506
["ID","MTS","AMOUNT","RATE_DAILY","PERIOD"]
[360037110,1746504656316,631.4706651,0.00017922,2]
[360037111,1746504696938,362.56814543,0.0001809,2]
[360037112,1746504732271,285.28021226,0.00018099,2]
[360037113,1746504767596,-300.0,0.00018187,2]
[360037114,1746504767620,-500.0,0.00018189,2]
[360037115,1746504767641,-508.86580344,0.00018189,2]
[360037116,1746504767662,-500.0,0.00018189,2]
[360037117,1746504767691,-500.0,0.00018189,2]
[360037118,1746504767713,-500.0,0.00018189,2]
[360037119,1746504767735,-611.35809299,0.00018189,2]
[360037120,1746504767756,-500.0,0.00018189,2]
[360037121,1746504767778,-500.0,0.00018189,2]
[360037122,1746504776508,500.0,0.00018189,2]
[360037123,1746504779205,-293579.77610357,0.0001819,2]
[360037124,1746504923237,-181.41561543,0.00018116,2]
[360037143,1746505086097,24900.0,0.0001724,2]
[360037144,1746505118625,-152.0,0.00018116,2]
[360037145,1746505126444,-74.94323379,0.00018116,2]
[360037146,1746505141554,652.02381871,0.00018054,2]
[360037147,1746505151324,4000.0,0.00021,10]
[360037148,1746505163511,177.39304266,0.00018089,2]
[360037149,1746505201245,333.41561543,0.00018016,2]
[360037150,1746505267886,171.9286951,0.00018088,2]
[360037151,1746505268385,171.9286951,0.00018088,2]
[360037152,1746505268780,171.9286951,0.00018089,2]
[360037153,1746505274822,1000.0,0.00018016,2]
[360037154,1746505283547,250.0,0.00018002,2]
[360037155,1746505298283,69650.81557608,0.00018002,2]
[360037156,1746505323976,1715.18246756,0.00018002,2]
[360037157,1746505338122,721.0289581,0.00018088,2]
[360037158,1746505430103,1510.6153528,0.00021,10]
[360037161,1746505514296,3103.54624133,0.0001808,2]
[360037162,1746505516261,3103.54624133,0.00018082,2]
[360037163,1746505518283,3103.54624133,0.00018085,2]
[360037164,1746505520297,3103.54624133,0.00018087,2]
[360037165,1746505522790,3103.54624133,0.00018089,2]
[360037166,1746505537704,948.79184419,0.00018069,2]
[360037168,1746505544674,2642.8197088,0.00017183,2]
[360037171,1746505563147,1043.47594476,0.0001807,2]
[360037172,1746505593675,1779.9970835,0.00017177,2]
[360037173,1746505598285,5378.96552568,0.0001807,2]
[360037174,1746505610102,-269.52181456,0.00018168,2]
[360037176,1746505625855,173.09162404,0.00018042,2]
[360037178,1746505659112,189.0,0.00022,90]
[360037182,1746505723603,958.01289043,0.00015,2]
[360037187,1746505796557,386.4932626,0.00017172,2]
[360037241,1746505832264,-1200.0,0.00018164,2]
[360037243,1746505832274,-300.0,0.00018164,2]
[360037245,1746505832283,-20107.35101429,0.00018165,2]
[360037667,1746505840666,1000.0,0.00018067,2]
[360037808,1746505848796,630.90033832,0.00018066,2]
[360037812,1746505873602,250.0,0.00018067,2]
[360037814,1746505912697,370000.0,0.00018065,2]
[360037815,1746505974316,370000.0,0.00018065,2]
[360037816,1746506037250,323278.49229175,0.00018065,2]
[360037817,1746506037279,23408.22504808,0.00018065,2]
[360037818,1746506037963,-186.86794338,0.00018065,2]
[360037819,1746506042479,-161.0,0.00018065,2]
[360037820,1746506045084,-242.0261084,0.00018055,2]
[360037821,1746506050047,-243.7732074,0.00018055,2]
[360037823,1746506053873,-280.21079707,0.00018055,2]
[360037824,1746506057123,-162.61442802,0.00018055,2]
[360037825,1746506060303,-129.98116803,0.00018055,2]
[360037826,1746506060326,-274.77824625,0.00018064,2]
[360037828,1746506069925,-25.22175375,0.00018064,2]
[360037829,1746506069947,-173.68154185,0.00018065,2]
[360037830,1746506075337,-197.41166193,0.00018064,2]
[360037831,1746506077985,-197.41166193,0.00018064,2]
[360037832,1746506087172,-105.17667614,0.00018064,2]
[360037833,1746506087198,-500.0,0.00018064,2]
[360037834,1746506087221,-72.65531829,0.00018064,2]
[360037835,1746506095645,-300.0,0.00018064,2]
[360037836,1746506096276,250.0,0.00017156,2]
[360037837,1746506098259,-197.40290516,0.00018055,2]
[360037838,1746506101605,-802.59709484,0.00018055,2]
[360037839,1746506108774,267.89606802,0.00017994,2]
[360037846,1746506279069,24900.0,0.00017064,2]
[360037847,1746506319293,725.75116859,0.00017963,2]
[360037848,1746506319749,166.515,0.00017702,2]
[360037851,1746506534593,635.03227256,0.00017961,2]
[360037854,1746506696297,265.4573449,0.00017194,2]
[360037856,1746506775454,658.36252241,0.00017949,2]
[360037857,1746506947360,-509.84,0.00018039,3]
[360037858,1746506947380,-390.4965614,0.00018042,2]
[360037859,1746506947401,-593.09156807,0.00018047,2]
[360037860,1746506947421,-500.0,0.00018047,2]
[360037861,1746506947441,-500.0,0.00018047,2]
[360037862,1746506947460,-500.0,0.00018047,2]
[360037863,1746506947480,-500.0,0.00018047,2]
[360037864,1746506947500,-578.13125966,0.00018047,2]
[360037865,1746506947521,-244.21596876,0.00018047,2]
[360037866,1746506947542,-500.0,0.00018047,2]
[360037867,1746506947562,-500.0,0.00018047,2]
[360037868,1746506947584,-500.0,0.00018047,2]
[360037869,1746506947604,-500.0,0.00018047,2]
[360037870,1746506947624,-500.0,0.00018047,2]
[360037871,1746506947645,-500.0,0.00018047,2]
[360037872,1746506947674,-500.0,0.00018047,2]
[360037873,1746506947696,-500.0,0.00018047,2]
[360037874,1746506947884,-500.0,0.00018047,2]
[360037875,1746506947905,-500.0,0.00018047,2]
[360037876,1746506947928,-500.0,0.00018047,2]
[360037877,1746506947949,-500.0,0.00018047,2]
[360037878,1746506947972,-418.47719927,0.00018047,2]
[360037879,1746506988574,-396.99756128,0.00018047,2]
[360037881,1746506999462,1000.0,0.00017939,2]
[360037882,1746507004806,-250.0,0.00018046,2]
[360037883,1746507007470,-249.8143988,0.00018038,2]
[360037884,1746507007493,-0.1856012,0.00018038,2]
[360037885,1746507013754,-161.69278599,0.00018038,2]
[360037886,1746507025207,815.5505099,0.00017047,2]
[360037947,1746507032471,-45.52161281,0.00018038,2]
[360037948,1746507032481,-151.0,0.00018038,2]
[360037949,1746507032492,-1200.0,0.00018045,2]
[360037950,1746507032502,-300.0,0.00018045,2]
[360037951,1746507032511,-19525.65636193,0.00018046,2]
[360038904,1746507073167,918.09995693,0.00017939,2]
[360038905,1746507078526,-239.81090291,0.00018035,3]
[360038907,1746507102112,250.0,0.00017047,2]
[360038909,1746507286198,-170.74052214,0.00018024,3]
[360038910,1746507291131,-466.30250784,0.00018024,3]
[360038911,1746507293990,24900.0,0.00017047,2]
[360038912,1746507294523,-211.78697002,0.00018024,3]
[360038913,1746507295966,170.74052214,0.00017933,2]
[360038914,1746507322602,-300.0,0.00018032,2]
[360038915,1746507322625,-300.0,0.00018032,2]
[360038916,1746507322649,-300.0,0.00018032,2]
[360038917,1746507322672,-452.1447,0.00018032,2]
[360038918,1746507325679,165.12002,0.00018,2]
[360038920,1746507354490,47672.96847153,0.00017933,2]
[360038921,1746507354516,250000.0,0.00017933,2]
[360038922,1746507354545,72327.03152847,0.00017933,2]
[360038928,1746507417053,370000.0,0.00017933,2]
[360038929,1746507486423,370000.0,0.00017933,2]
[360038930,1746507562221,187672.96847153,0.00017932,2]
[360038931,1746507562878,-827.84455946,0.00017932,2]
[360038932,1746507568551,-412.720524,0.0001717,2]
[360038933,1746507576453,-240.2197683,0.0001717,2]
[360038934,1746507576476,-44.54387441,0.00017932,2]
[360038935,1746507581061,-265.00542295,0.00017932,2]
[360038936,1746507586918,-200.0,0.00017932,2]
[360038937,1746507590545,-152.44023618,0.00017932,2]
[360038938,1746507595117,-319.3630589,0.00017932,2]
[360038939,1746507598292,-176.32727557,0.00017932,2]
[360038940,1746507602143,-166.0,0.00017931,2]
[360038942,1746507606191,-34.17512853,0.00017931,2]
[360038943,1746507606213,-176.85120041,0.00017931,2]
[360038944,1746507609365,-78.14879959,0.00017931,2]
[360038945,1746507609388,-110.2884856,0.00017931,2]
[360038947,1746507615295,-189.7115144,0.00017931,2]
[360038948,1746507615319,-508.08095886,0.00017931,2]
[360038949,1746507625220,-217.94381343,0.00017931,2]
[360038953,1746507629891,-197.83910288,0.00017931,2]
[360038954,1746507638209,-166.0,0.00017931,2]
[360038955,1746507641439,-110.13612483,0.00017931,2]
[360038956,1746507641461,-227.4376699,0.00017931,2]
[360038957,1746507654350,-177.71078499,0.00017931,2]
[360038959,1746507657498,-257.36048093,0.00017831,2]
[360038960,1746507660605,-106.47862195,0.00017831,2]
[360038961,1746507660627,-52.40739036,0.00017931,2]
[360038962,1746507665183,-208.88601231,0.00017931,2]
[360038965,1746507670160,-60.99581234,0.00017931,2]
[360038966,1746507670190,-216.99279676,0.00017931,2]
[360038967,1746507676473,-198.17130089,0.00017931,2]
[360038968,1746507676495,-304.69188176,0.00017931,2]
[360038969,1746507676518,-39.24509409,0.00017931,2]
[360038970,1746507687160,-300.0,0.00017931,2]
[360038972,1746507706998,-155.0,0.00017921,2]
[360038973,1746507819738,-379.66718251,0.00017921,3]
[360038974,1746507838207,-263.65862462,0.00017921,3]
[360038975,1746507843550,-229.72458955,0.0001792,2]
[360038976,1746507844184,-229.72458955,0.00017921,3]
[360038977,1746507851779,-153.81319908,0.0001792,3]
[360038978,1746507856542,-70.27541045,0.0001792,2]
[360038979,1746507856564,-284.70012445,0.0001792,3]
[360038980,1746507861493,-234.63667647,0.0001792,3]
[360038981,1746507861515,-84.70253585,0.0001792,3]
[360038982,1746507865322,-251.86746415,0.0001792,3]
[360038983,1746507865346,-201.9457349,0.00017921,3]
[360038984,1746507873257,-168.29,0.0001792,3]
[360038985,1746507873281,-76.79792795,0.00017921,3]
[360038986,1746507876268,-232.48389585,0.0001792,2]
[360038987,1746507876291,-12.6040321,0.0001792,2]
[360038988,1746507877426,-245.08792795,0.0001792,2]
[360038989,1746507889061,-242.30803995,0.0001792,2]
[360038990,1746507889087,-19.17863655,0.0001792,2]
[360038991,1746507892963,-299.2214972,0.0001792,2]
[360038992,1746507896202,-181.59986625,0.0001792,2]
[360038993,1746507896224,-0.50615745,0.0001792,2]
[360038994,1746507903343,-499.49384255,0.0001792,2]
[360038995,1746507903369,-6.28994482,0.0001792,2]
[360038996,1746507909095,-164.01194511,0.0001792,2]
[360038998,1746507916597,-163.42128924,0.00017919,2]
[360038999,1746507921003,-285.28952373,0.00017919,2]
[360039000,1746507924180,-198.51022503,0.00017919,2]
[360039001,1746507928578,-194.11173631,0.0001782,2]
[360039002,1746507932580,-155.0,0.0001782,2]
[360039003,1746507936977,-146.82068622,0.0001782,2]
[360039006,1746508014562,-300.0,0.00017909,2]
[360039007,1746508014583,-500.0,0.00017909,2]
[360039008,1746508014604,-125.5375554,0.00017909,2]
[360039011,1746508101512,-152.78706244,0.00017809,2]
[360039012,1746508143077,-152.78706243,0.0001782,2]
[360039013,1746508143098,-113.10526944,0.00017831,2]
[360039014,1746508151313,-39.68179299,0.00017831,2]
[360039015,1746508151336,-182.70779449,0.00017907,2]
[360039016,1746508156472,-117.29220551,0.00017907,2]
[360039017,1746508204002,-182.70779449,0.00017907,2]
[360039018,1746508206567,-117.29220551,0.00017907,2]
[360039019,1746508211401,-406.77885473,0.00017907,2]
[360039078,1746508232740,-793.22114527,0.00017907,2]
[360039079,1746508232751,-300.0,0.00017907,2]
[360039080,1746508232760,-315.83581835,0.00017907,2]
[360039081,1746508232770,-500.0,0.00017907,2]
[360039082,1746508232780,-500.0,0.00017907,2]
[360039083,1746508232790,-531.69753384,0.00017907,2]
[360039084,1746508232800,-5958.81531313,0.00017908,2]
[360039085,1746508232810,-5958.81531313,0.00017908,2]
[360039086,1746508232820,-5958.81531313,0.00017908,2]
[360039087,1746508232830,-5958.81531313,0.00017908,2]
[360039088,1746508232840,-5958.81531313,0.00017908,2]
[360039089,1746508232851,-5958.81531313,0.00017908,2]
[360039090,1746508232862,-5958.81531313,0.00017908,2]
[360039091,1746508232874,-5958.81531313,0.00017908,2]
[360039092,1746508232886,-5958.81531313,0.00017908,2]
[360039093,1746508232895,-5958.81531313,0.00017908,2]
[360039094,1746508232905,-5958.81531313,0.00017908,2]
[360039095,1746508232914,-5958.81531313,0.00017908,2]
[360039096,1746508232923,-5958.81531313,0.00017908,2]
[360039097,1746508232933,-5958.81531313,0.00017908,2]
[360039098,1746508232943,-5958.81531313,0.00017908,2]
[360039099,1746508232952,-5958.81531313,0.00017908,2]
[360039100,1746508232962,-5958.81531313,0.00017908,2]
[360039101,1746508232971,-5958.81531313,0.00017908,2]
[360039102,1746508232981,-5958.81531313,0.00017908,2]
[360039103,1746508232990,-5958.81531313,0.00017908,2]
[360039104,1746508233000,-5958.81531313,0.00017908,2]
[360039105,1746508233010,-5958.81531313,0.00017908,2]
[360039106,1746508233020,-5958.81531313,0.00017908,2]
[360039107,1746508233029,-5958.81531313,0.00017908,2]
[360039108,1746508233039,-5958.81531313,0.00017908,2]
[360039109,1746508233049,-5958.81531313,0.00017908,2]
[360039110,1746508233059,-5958.81531313,0.00017908,2]
[360039111,1746508233068,-5958.81531313,0.00017908,2]
[360039112,1746508233078,-5958.81531313,0.00017908,2]
[360039113,1746508233088,-4928.9307494,0.00017908,2]
[360039247,1746508241560,-151.0,0.00017909,2]
[360039249,1746508241569,-151.0,0.00017909,2]
[360039251,1746508241579,-118.87043536,0.00017909,2]
[360039444,1746508243512,-8.483e-05,0.00017909,2]
[360039456,1746508243730,-38.11059081,0.00017909,2]
[360039457,1746508243740,-64.72691535,0.00017909,2]
[360039482,1746508246470,-86.27308465,0.00017909,2]
[360039484,1746508246479,-151.0,0.00017909,2]
[360039486,1746508246489,-151.0,0.00017909,2]
[360039487,1746508246498,-151.0,0.00017909,2]
[360039488,1746508246507,-151.0,0.00017909,2]
[360039489,1746508246517,-151.0,0.00017909,2]
[360039490,1746508246526,-151.0,0.00017909,2]
[360039491,1746508246536,-151.0,0.00017909,2]
[360039492,1746508246546,-151.0,0.00017909,2]
[360039493,1746508246555,-151.0,0.00017909,2]
[360039494,1746508246565,-151.0,0.00017909,2]
[360039495,1746508246574,-151.0,0.00017909,2]
[360039496,1746508246583,-151.0,0.00017909,2]
[360039497,1746508246593,-151.0,0.00017909,2]
[360039498,1746508246602,-151.0,0.00017909,2]
[360039499,1746508246612,-172.927812,0.00017909,2]
[360039500,1746508246621,-236.495247,0.00017909,2]
[360039501,1746508246630,-236.495247,0.00017909,2]
[360039502,1746508246640,-236.495247,0.00017909,2]
[360039503,1746508246649,-236.495247,0.00017909,2]
[360039504,1746508246659,-236.495247,0.00017909,2]
[360039505,1746508246668,-236.495247,0.00017909,2]
[360039506,1746508246677,-236.495247,0.00017909,2]
[360039507,1746508246687,-236.495247,0.00017909,2]
[360039508,1746508246696,-236.495247,0.00017909,2]
[360039509,1746508246705,-236.495247,0.00017909,2]
[360039510,1746508246715,-236.495247,0.00017909,2]
[360039511,1746508246724,-236.495247,0.00017909,2]
[360039512,1746508246733,-236.495247,0.00017909,2]
[360039513,1746508246742,-236.495247,0.00017909,2]
[360039514,1746508246751,-236.495247,0.00017909,2]
[360039515,1746508246761,-236.495247,0.00017909,2]
[360039516,1746508246770,-236.495247,0.00017909,2]
[360039517,1746508246779,-236.495247,0.00017909,2]
[360039518,1746508246788,-236.495247,0.00017909,2]
[360039519,1746508246797,-236.495252,0.00017909,2]
[360039520,1746508246807,-175.22094869,0.00017909,2]
[360039521,1746508246817,-151.0,0.00017909,2]
[360039522,1746508246826,-92925.41,0.0001791,2]
[360039523,1746508246836,-22833.1297952,0.0001791,2]
[360039524,1746508246845,-509.84,0.0001791,3]
[360039525,1746508246855,-152.0,0.00017914,2]
[360039526,1746508246864,-296.54658761,0.00017919,2]
[360039527,1746508246874,-7311.0052227,0.0001792,2]
[360039528,1746508246884,-151.0,0.0001792,2]
[360039529,1746508246894,-151.0,0.0001792,2]
[360039530,1746508246903,-151.0,0.0001792,2]
[360039531,1746508246913,-151.0,0.0001792,2]
[360039532,1746508246923,-243.888923,0.0001792,2]
[360039533,1746508246932,-250.665242,0.0001792,2]
[360039534,1746508246943,-250.665242,0.0001792,2]
[360039535,1746508246952,-250.665242,0.0001792,2]
[360039536,1746508246962,-250.665242,0.0001792,2]
[360039537,1746508246972,-250.665242,0.0001792,2]
[360039538,1746508246982,-250.665242,0.0001792,2]
[360039539,1746508246991,-250.665242,0.0001792,2]
[360039540,1746508247000,-250.665242,0.0001792,2]
[360039541,1746508247011,-250.665242,0.0001792,2]
[360039542,1746508247020,-250.665242,0.0001792,2]
[360039543,1746508247029,-250.665242,0.0001792,2]
[360039544,1746508247039,-250.665242,0.0001792,2]
[360039545,1746508247048,-250.665242,0.0001792,2]
[360039546,1746508247058,-250.665242,0.0001792,2]
[360039547,1746508247068,-250.665242,0.0001792,2]
[360039548,1746508247078,-250.665242,0.0001792,2]
[360039549,1746508247088,-250.665242,0.0001792,2]
[360039550,1746508247098,-250.665242,0.0001792,2]
[360039551,1746508247108,-250.665242,0.0001792,2]
[360039552,1746508247117,-250.665251,0.0001792,2]
[360039553,1746508247127,-657.363611,0.0001792,2]
[360039554,1746508247136,-657.363611,0.0001792,2]
[360039555,1746508247145,-657.363611,0.0001792,2]
[360039556,1746508247154,-657.363611,0.0001792,2]
[360039557,1746508247165,-657.363611,0.0001792,2]
[360039558,1746508247175,-657.363611,0.0001792,2]
[360039559,1746508247185,-657.363611,0.0001792,2]
[360039560,1746508247194,-657.363611,0.0001792,2]
[360039561,1746508247204,-657.363611,0.0001792,2]
[360039562,1746508247214,-657.363611,0.0001792,2]
[360039563,1746508247224,-657.363611,0.0001792,2]
[360039564,1746508247238,-657.363611,0.0001792,2]
[360039565,1746508247247,-657.363611,0.0001792,2]
[360039566,1746508247257,-657.363611,0.0001792,2]
[360039567,1746508247266,-657.363611,0.0001792,2]
[360039568,1746508247277,-657.363611,0.0001792,2]
[360039569,1746508247287,-657.363611,0.0001792,2]
[360039570,1746508247297,-657.363611,0.0001792,2]
[360039571,1746508247308,-657.363611,0.0001792,2]
[360039572,1746508247318,-657.36362,0.0001792,2]
[360039573,1746508247328,-4044.76594047,0.00017921,3]
[360039574,1746508247338,-2692.59,0.00017921,3]
[360039575,1746508247348,-1346.29,0.00017922,3]
[360039576,1746508247357,-504.87,0.00017922,3]
[360039577,1746508247367,-411.09662434,0.0001793,2]
[360039578,1746508247377,-160.0,0.0001793,2]
[360039579,1746508247386,-501.19080263,0.0001793,2]
[360039580,1746508247396,-153.810617,0.0001793,2]
[360039581,1746508247405,-151.0,0.0001793,2]
[360039582,1746508247416,-151.0,0.0001793,2]
[360039583,1746508247426,-151.0,0.0001793,2]
[360039584,1746508247435,-151.0,0.0001793,2]
[360039585,1746508247444,-151.0,0.0001793,2]
[360039586,1746508247454,-151.0,0.0001793,2]
[360039587,1746508247463,-152.566949,0.0001793,2]
[360039588,1746508247473,-580.102464,0.0001793,2]
[360039589,1746508247483,-580.102464,0.0001793,2]
[360039590,1746508247492,-580.102464,0.0001793,2]
[360039591,1746508247502,-580.102464,0.0001793,2]
[360039592,1746508247512,-580.102464,0.0001793,2]
[360039593,1746508247522,-580.102464,0.0001793,2]
[360039594,1746508247532,-580.102464,0.0001793,2]
[360039595,1746508247541,-580.102464,0.0001793,2]
[360039596,1746508247551,-580.102464,0.0001793,2]
[360039597,1746508247560,-580.102464,0.0001793,2]
[360039598,1746508247570,-580.102464,0.0001793,2]
[360039599,1746508247579,-580.102464,0.0001793,2]
[360039600,1746508247589,-580.102464,0.0001793,2]
[360039601,1746508247599,-580.102464,0.0001793,2]
[360039602,1746508247608,-580.102464,0.0001793,2]
[360039603,1746508247618,-580.102464,0.0001793,2]
[360039604,1746508247629,-580.102464,0.0001793,2]
[360039605,1746508247638,-580.102464,0.0001793,2]
[360039606,1746508247648,-580.102464,0.0001793,2]
[360039607,1746508247658,-580.102467,0.0001793,2]
[360039608,1746508247667,-151.0,0.0001793,2]
[360039609,1746508247677,-151.0,0.0001793,2]
[360039610,1746508247688,-151.0,0.0001793,2]
[360039611,1746508247697,-151.0,0.0001793,2]
[360039612,1746508247707,-151.0,0.0001793,2]
[360039613,1746508247716,-151.0,0.0001793,2]
[360039614,1746508247726,-151.0,0.0001793,2]
[360039615,1746508247735,-151.0,0.0001793,2]
[360039616,1746508247745,-151.0,0.0001793,2]
[360039617,1746508247755,-151.0,0.0001793,2]
[360039618,1746508247764,-151.0,0.0001793,2]
[360039619,1746508247774,-151.0,0.0001793,2]
[360039620,1746508247783,-151.0,0.0001793,2]
[360039621,1746508247793,-151.0,0.0001793,2]
[360039622,1746508247802,-151.0,0.0001793,2]
[360039623,1746508247812,-167.832558,0.0001793,2]
[360039624,1746508247822,-151.0,0.0001793,2]
[360039625,1746508247831,-151.0,0.0001793,2]
[360039626,1746508247841,-151.0,0.0001793,2]
[360039627,1746508247850,-151.0,0.0001793,2]
[360039628,1746508247860,-151.0,0.0001793,2]
[360039629,1746508247870,-151.0,0.0001793,2]
[360039630,1746508247879,-294.005366,0.0001793,2]
[360039631,1746508247889,-500.0,0.00017931,2]
[360039632,1746508247899,-160.0,0.00017931,2]
[360039633,1746508247909,-151.0,0.00017931,2]
[360039634,1746508247919,-151.0,0.00017931,2]
[360039635,1746508247928,-151.0,0.00017931,2]
[360039636,1746508247938,-151.0,0.00017931,2]
[360039637,1746508247947,-151.0,0.00017931,2]
[360039638,1746508247957,-151.0,0.00017931,2]
[360039639,1746508247967,-151.0,0.00017931,2]
[360039640,1746508247977,-151.0,0.00017931,2]
[360039641,1746508247987,-151.0,0.00017931,2]
[360039642,1746508247996,-151.0,0.00017931,2]
[360039643,1746508248006,-151.0,0.00017931,2]
[360039644,1746508248015,-197.923873,0.00017931,2]
[360039645,1746508248024,-151.0,0.00017931,2]
[360039646,1746508248033,-151.0,0.00017931,2]
[360039647,1746508248043,-151.0,0.00017931,2]
[360039648,1746508248052,-151.0,0.00017931,2]
[360039649,1746508248061,-151.0,0.00017931,2]
[360039650,1746508248071,-293.025486,0.00017931,2]
[360039651,1746508248081,-151.0,0.00017931,2]
[360039652,1746508248090,-151.0,0.00017931,2]
[360039653,1746508248100,-151.0,0.00017931,2]
[360039654,1746508248109,-151.0,0.00017931,2]
[360039655,1746508248119,-151.0,0.00017931,2]
[360039656,1746508248129,-151.0,0.00017931,2]
[360039657,1746508248139,-151.0,0.00017931,2]
[360039658,1746508248149,-151.0,0.00017931,2]
[360039659,1746508248158,-151.0,0.00017931,2]
[360039660,1746508248168,-151.0,0.00017931,2]
[360039661,1746508248178,-151.0,0.00017931,2]
[360039662,1746508248188,-151.0,0.00017931,2]
[360039663,1746508248198,-202.417845,0.00017931,2]
[360039664,1746508248207,-151.0,0.00017931,2]
[360039665,1746508248216,-151.0,0.00017931,2]
[360039666,1746508248225,-151.0,0.00017931,2]
[360039667,1746508248239,-151.0,0.00017931,2]
[360039668,1746508248248,-161.188207,0.00017931,2]
[360039669,1746508248258,-156.166026,0.00017931,2]
[360039670,1746508248267,-154.106186,0.00017931,2]
[360039671,1746508248276,-154.106186,0.00017931,2]
[360039672,1746508248286,-154.106186,0.00017931,2]
[360039673,1746508248295,-154.106186,0.00017931,2]
[360039674,1746508248305,-154.106186,0.00017931,2]
[360039675,1746508248314,-154.106186,0.00017931,2]
[360039676,1746508248325,-154.106186,0.00017931,2]
[360039677,1746508248335,-154.106186,0.00017931,2]
[360039678,1746508248344,-154.106186,0.00017931,2]
[360039679,1746508248354,-154.106186,0.00017931,2]
[360039680,1746508248364,-154.106186,0.00017931,2]
[360039681,1746508248373,-154.106186,0.00017931,2]
[360039682,1746508248383,-154.106186,0.00017931,2]
[360039683,1746508248393,-154.106186,0.00017931,2]
[360039684,1746508248403,-154.106186,0.00017931,2]
[360039685,1746508248412,-154.106186,0.00017931,2]
[360039686,1746508248422,-154.106186,0.00017931,2]
[360039687,1746508248431,-154.106186,0.00017931,2]
[360039688,1746508248440,-154.106186,0.00017931,2]
[360039689,1746508248450,-154.106195,0.00017931,2]
[360039690,1746508248460,-151.0,0.00017931,2]
[360039691,1746508248470,-151.0,0.00017931,2]
[360039692,1746508248479,-151.0,0.00017931,2]
[360039693,1746508248489,-151.0,0.00017931,2]
[360039694,1746508248499,-151.0,0.00017931,2]
[360039695,1746508248508,-151.0,0.00017931,2]
[360039696,1746508248518,-151.0,0.00017931,2]
[360039697,1746508248529,-151.0,0.00017931,2]
[360039698,1746508248538,-250.805597,0.00017931,2]
[360039699,1746508248547,-151.0,0.00017931,2]
[360039700,1746508248556,-151.0,0.00017931,2]
[360039701,1746508248566,-151.0,0.00017931,2]
[360039702,1746508248723,-151.0,0.00017931,2]
[360039703,1746508248734,-151.0,0.00017931,2]
[360039704,1746508248743,-151.0,0.00017931,2]
[360039705,1746508248753,-151.0,0.00017931,2]
[360039706,1746508248762,-151.0,0.00017931,2]
[360039707,1746508248772,-151.0,0.00017931,2]
[360039708,1746508248781,-151.0,0.00017931,2]
[360039709,1746508248790,-151.0,0.00017931,2]
[360039710,1746508248799,-151.0,0.00017931,2]
[360039711,1746508248809,-151.0,0.00017931,2]
[360039712,1746508248818,-224.012359,0.00017931,2]
[360039713,1746508248827,-151.0,0.00017931,2]
[360039714,1746508248837,-151.0,0.00017931,2]
[360039715,1746508248846,-151.0,0.00017931,2]
[360039716,1746508248855,-151.0,0.00017931,2]
[360039717,1746508248864,-151.0,0.00017931,2]
[360039718,1746508248874,-151.0,0.00017931,2]
[360039719,1746508248883,-224.466994,0.00017931,2]
[360039720,1746508248893,-7059.139891,0.00017931,2]
[360039721,1746508248902,-7059.139891,0.00017931,2]
[360039722,1746508248911,-7059.139891,0.00017931,2]
[360039723,1746508248921,-7059.139891,0.00017931,2]
[360039724,1746508248931,-7059.139891,0.00017931,2]
[360039725,1746508248941,-7059.139891,0.00017931,2]
[360039726,1746508248950,-7059.139891,0.00017931,2]
[360039727,1746508248959,-7059.139891,0.00017931,2]
[360039728,1746508248968,-7059.139891,0.00017931,2]
[360039729,1746508248977,-7059.139891,0.00017931,2]
[360039730,1746508248987,-7059.139891,0.00017931,2]
[360039731,1746508248996,-7059.139891,0.00017931,2]